[Event "*** SCC Grand Prix: Titled Tuesday Blitz"]
[Site "Chess.com"]
[Date "2020.06.23"]
[Round "9"]
[White "nitpicker"]
[Black "baby_leo"]
[Result "1-0"]
[WhiteElo "2165"]
[BlackElo "1966"]
[TimeControl "180+1"]
[EndTime "11:46:52 PDT"]
[Termination "nitpicker won by resignation"]

1. d4 {[%clk 0:03:00.9]} 1... Nf6 {[%clk 0:02:59.5]} 2. c4 {[%clk 0:03:00.5]}
2... e6 {[%clk 0:02:58.5]} 3. g3 {[%clk 0:02:59.8]} 3... d5 {[%clk 0:02:56.3]}
4. Nf3 {[%clk 0:02:59.3]} 4... Be7 {[%clk 0:02:56]} 5. Bg2 {[%clk 0:02:58.7]}
5... O-O {[%clk 0:02:56.6]} 6. O-O {[%clk 0:02:58.5]} 6... dxc4 {[%clk
0:02:56.6]} 7. Ne5 {[%clk 0:02:58.2]} 7... Nc6 {[%clk 0:02:56]} 8. Bxc6 {[%clk
0:02:57.9]} 8... bxc6 {[%clk 0:02:56.6]} 9. Nxc6 {[%clk 0:02:58.3]} 9... Qe8
{[%clk 0:02:57.5]} 10. Nxe7+ {[%clk 0:02:58.9]} 10... Qxe7 {[%clk 0:02:58.3]}
11. Qa4 {[%clk 0:02:58.5]} 11... c5 {[%clk 0:02:55.7]} 12. Qc6 {[%clk
0:02:58.1]} 12... Bb7 {[%clk 0:02:42.3]} 13. Qxc5 {[%clk 0:02:58.1]} 13... Qd7
{[%clk 0:02:40.9]} 14. Qxc4 {[%clk 0:02:43.9]} 14... Rac8 {[%clk 0:02:33.9]} 15.
Qd3 {[%clk 0:02:40.2]} 15... Qd5 {[%clk 0:02:08.8]} 16. f3 {[%clk 0:02:39.4]}
16... Rfd8 {[%clk 0:01:56.2]} 17. Nc3 {[%clk 0:02:11.1]} 17... Qh5 {[%clk
0:01:46.8]} 18. Qb5 {[%clk 0:01:36.1]} 18... Qxb5 {[%clk 0:00:34.8]} 19. Nxb5
{[%clk 0:01:34.8]} 19... Ba6 {[%clk 0:00:34.7]} 20. a4 {[%clk 0:01:23.1]} 20...
Rc2 {[%clk 0:00:28.8]} 21. Re1 {[%clk 0:01:11.4]} 21... h5 {[%clk 0:00:20]} 22.
b3 {[%clk 0:00:55.1]} 22... h4 {[%clk 0:00:19.9]} 23. Bg5 {[%clk 0:00:54.3]}
23... hxg3 {[%clk 0:00:19.6]} 24. hxg3 {[%clk 0:00:54.2]} 24... Rd5 {[%clk
0:00:17.8]} 25. Bxf6 {[%clk 0:00:50.3]} 25... gxf6 {[%clk 0:00:18.7]} 26. Rad1
{[%clk 0:00:41.2]} 26... Bxb5 {[%clk 0:00:18.6]} 27. axb5 {[%clk 0:00:40.5]}
27... Rxb5 {[%clk 0:00:19.5]} 28. Ra1 {[%clk 0:00:34.1]} 28... Rxb3 {[%clk
0:00:19.2]} 29. Rxa7 {[%clk 0:00:33.8]} 29... Rbb2 {[%clk 0:00:19.5]} 30. Kf2
{[%clk 0:00:34.1]} 30... Kg7 {[%clk 0:00:19.1]} 31. Ra3 {[%clk 0:00:27.5]} 31...
Rd2 {[%clk 0:00:18.6]} 32. Ke3 {[%clk 0:00:25.2]} 32... f5 {[%clk 0:00:17.6]}
33. Rd3 {[%clk 0:00:23.9]} 33... Rdc2 {[%clk 0:00:17.9]} 34. d5 {[%clk 0:00:21]}
34... e5 {[%clk 0:00:13.8]} 35. d6 {[%clk 0:00:20.9]} 35... Rc8 {[%clk
0:00:09.7]} 36. d7 {[%clk 0:00:20.1]} 36... Rd8 {[%clk 0:00:10.1]} 37. Red1
{[%clk 0:00:20]} 37... Rb4 {[%clk 0:00:08.4]} 38. Rd5 {[%clk 0:00:19.3]} 38...
f4+ {[%clk 0:00:07.9]} 39. gxf4 {[%clk 0:00:19]} 39... exf4+ {[%clk 0:00:07.9]}
40. Kf2 {[%clk 0:00:19.9]} 40... Rb7 {[%clk 0:00:07.5]} 41. R5d4 {[%clk
0:00:18.1]} 41... Kf8 {[%clk 0:00:06.8]} 42. Kg2 {[%clk 0:00:18.3]} 42... Ke7
{[%clk 0:00:06.8]} 43. Kh3 {[%clk 0:00:19]} 43... Rbxd7 {[%clk 0:00:06.8]} 44.
Rxd7+ {[%clk 0:00:18.3]} 44... Rxd7 {[%clk 0:00:07.7]} 45. Rxd7+ {[%clk
0:00:18]} 45... Kxd7 {[%clk 0:00:08.6]} 46. Kg4 {[%clk 0:00:18.4]} 46... Ke6
{[%clk 0:00:07.5]} 47. Kxf4 {[%clk 0:00:18.9]} 47... Kf6 {[%clk 0:00:08]} 48. e4
{[%clk 0:00:18]} 48... Kg6 {[%clk 0:00:06]} 49. Ke5 {[%clk 0:00:17.8]} 49... Kg5
{[%clk 0:00:06.5]} 50. f4+ {[%clk 0:00:16.6]} 50... Kg6 {[%clk 0:00:06.8]} 51.
f5+ {[%clk 0:00:15.8]} 51... Kg5 {[%clk 0:00:06.5]} 52. Kd5 {[%clk 0:00:12]}
52... Kf6 {[%clk 0:00:06.4]} 53. Kd6 {[%clk 0:00:11.7]} 53... Kg5 {[%clk
0:00:03.9]} 54. Ke5 {[%clk 0:00:11.9]} 54... f6+ {[%clk 0:00:01.6]} 55. Ke6
{[%clk 0:00:11.8]} 55... Kf4 {[%clk 0:00:01.6]} 56. Kxf6 {[%clk 0:00:12.1]}
56... Kxe4 {[%clk 0:00:02.5]} 57. Ke6 {[%clk 0:00:12.5]} 57... Kf4 {[%clk
0:00:02.5]} 58. f6 {[%clk 0:00:12.7]} 1-0

[Event "*** SCC Grand Prix: Titled Tuesday Blitz"]
[Site "Chess.com"]
[Date "2020.06.23"]
[Round "9"]
[White "DenLaz"]
[Black "cholzan"]
[Result "1-0"]
[WhiteElo "2714"]
[BlackElo "2384"]
[TimeControl "180+1"]
[EndTime "11:46:54 PDT"]
[Termination "DenLaz won by resignation"]

1. d4 {[%clk 0:02:59.6]} 1... d6 {[%clk 0:02:59.7]} 2. Nf3 {[%clk 0:02:57.4]}
2... Nd7 {[%clk 0:02:59.6]} 3. c4 {[%clk 0:02:51.6]} 3... e5 {[%clk 0:02:59]} 4.
Nc3 {[%clk 0:02:52.1]} 4... Ngf6 {[%clk 0:02:58.4]} 5. g3 {[%clk 0:02:52.5]}
5... Be7 {[%clk 0:02:58.1]} 6. Bg2 {[%clk 0:02:51.5]} 6... O-O {[%clk
0:02:58.5]} 7. O-O {[%clk 0:02:52]} 7... c6 {[%clk 0:02:59]} 8. e4 {[%clk
0:02:48.7]} 8... a6 {[%clk 0:02:58.8]} 9. d5 {[%clk 0:02:37.5]} 9... cxd5 {[%clk
0:02:56.8]} 10. cxd5 {[%clk 0:02:36.3]} 10... b5 {[%clk 0:02:56.6]} 11. Ne1
{[%clk 0:02:35.4]} 11... Nb6 {[%clk 0:02:55.7]} 12. Nd3 {[%clk 0:02:33.3]} 12...
Nfd7 {[%clk 0:02:38.6]} 13. b3 {[%clk 0:02:30.7]} 13... Qc7 {[%clk 0:02:33.1]}
14. Bd2 {[%clk 0:02:27.6]} 14... Nc5 {[%clk 0:02:28.2]} 15. Nxc5 {[%clk
0:02:15]} 15... dxc5 {[%clk 0:02:29.1]} 16. Be3 {[%clk 0:02:05.9]} 16... Bd6
{[%clk 0:02:27.9]} 17. Rc1 {[%clk 0:02:02.8]} 17... Qe7 {[%clk 0:02:27.7]} 18.
Qd2 {[%clk 0:01:59.2]} 18... Nd7 {[%clk 0:02:15.4]} 19. Ne2 {[%clk 0:01:56.7]}
19... Bb7 {[%clk 0:02:12.8]} 20. Rc2 {[%clk 0:01:56.4]} 20... Rfc8 {[%clk
0:02:01.4]} 21. Nc1 {[%clk 0:01:53.3]} 21... a5 {[%clk 0:01:54]} 22. Nd3 {[%clk
0:01:48]} 22... c4 {[%clk 0:01:50.3]} 23. bxc4 {[%clk 0:01:46.1]} 23... bxc4
{[%clk 0:01:51.2]} 24. Nc1 {[%clk 0:01:31.3]} 24... Ba6 {[%clk 0:01:48.7]} 25.
Ne2 {[%clk 0:01:27]} 25... c3 {[%clk 0:01:44.1]} 26. Qd1 {[%clk 0:01:24.6]}
26... Bb4 {[%clk 0:01:32.2]} 27. Re1 {[%clk 0:01:15.2]} 27... Qd6 {[%clk
0:01:26.8]} 28. Qa1 {[%clk 0:01:06.5]} 28... Bd3 {[%clk 0:01:23.1]} 29. Rxc3
{[%clk 0:00:57.1]} 29... Bxc3 {[%clk 0:01:22.2]} 30. Nxc3 {[%clk 0:00:58]} 30...
Qb4 {[%clk 0:01:19]} 31. Bd2 {[%clk 0:00:56.7]} 31... Qd4 {[%clk 0:01:11.7]} 32.
Bh3 {[%clk 0:00:55.3]} 32... Rc7 {[%clk 0:01:07.1]} 33. Qb2 {[%clk 0:00:43.4]}
33... Rb8 {[%clk 0:00:59.3]} 34. Qa3 {[%clk 0:00:42.2]} 34... Qb4 {[%clk
0:00:58.8]} 35. Qxb4 {[%clk 0:00:38.2]} 35... axb4 {[%clk 0:00:59.6]} 36. d6
{[%clk 0:00:23.9]} 36... Rxc3 {[%clk 0:00:41.2]} 37. Bxd7 {[%clk 0:00:09.5]}
37... Rd8 {[%clk 0:00:37.5]} 38. Bxc3 {[%clk 0:00:06]} 38... bxc3 {[%clk
0:00:38.4]} 39. Ba4 {[%clk 0:00:06.4]} 39... Rxd6 {[%clk 0:00:37.9]} 40. Rd1
{[%clk 0:00:06.6]} 40... Rd4 {[%clk 0:00:29]} 41. Bb3 {[%clk 0:00:05.9]} 41...
Kf8 {[%clk 0:00:24.3]} 42. f3 {[%clk 0:00:05.5]} 42... Be2 {[%clk 0:00:22.7]}
43. Rc1 {[%clk 0:00:05.2]} 43... Bxf3 {[%clk 0:00:19.4]} 44. Rxc3 {[%clk
0:00:05.6]} 44... Bxe4 {[%clk 0:00:19.4]} 45. Rc8+ {[%clk 0:00:06.2]} 45... Ke7
{[%clk 0:00:19.3]} 46. Rc7+ {[%clk 0:00:06.9]} 46... Rd7 {[%clk 0:00:19.1]} 47.
Rxd7+ {[%clk 0:00:07.2]} 47... Kxd7 {[%clk 0:00:20]} 48. Bxf7 {[%clk 0:00:08.1]}
48... h6 {[%clk 0:00:20.1]} 49. Kf2 {[%clk 0:00:07.8]} 49... Kd6 {[%clk
0:00:20]} 50. Ke3 {[%clk 0:00:07.9]} 50... Bd5 {[%clk 0:00:19.3]} 51. Bxd5
{[%clk 0:00:07.2]} 51... Kxd5 {[%clk 0:00:19.9]} 52. a3 {[%clk 0:00:07.6]} 52...
g5 {[%clk 0:00:16.3]} 53. g4 {[%clk 0:00:07.6]} 53... Kc4 {[%clk 0:00:13.9]} 54.
Ke4 {[%clk 0:00:08.5]} 1-0

[Event "*** SCC Grand Prix: Titled Tuesday Blitz"]
[Site "Chess.com"]
[Date "2020.06.23"]
[Round "9"]
[White "Skatchkov_V"]
[Black "Justinz"]
[Result "1-0"]
[WhiteElo "2545"]
[BlackElo "2384"]
[TimeControl "180+1"]
[EndTime "11:46:54 PDT"]
[Termination "Skatchkov_V won by checkmate"]

1. Nf3 {[%clk 0:03:00.2]} 1... Nf6 {[%clk 0:02:48.7]} 2. g3 {[%clk 0:03:00.1]}
2... e6 {[%clk 0:02:48.8]} 3. Bg2 {[%clk 0:03:00.7]} 3... d5 {[%clk 0:02:48.9]}
4. O-O {[%clk 0:03:01.5]} 4... Be7 {[%clk 0:02:49.1]} 5. d3 {[%clk 0:03:02.3]}
5... O-O {[%clk 0:02:49.2]} 6. Nbd2 {[%clk 0:03:03.2]} 6... c5 {[%clk
0:02:49.5]} 7. Re1 {[%clk 0:03:03.8]} 7... b5 {[%clk 0:02:49.8]} 8. e4 {[%clk
0:03:04.6]} 8... Nc6 {[%clk 0:02:50]} 9. e5 {[%clk 0:03:04]} 9... Nd7 {[%clk
0:02:49.1]} 10. Nf1 {[%clk 0:03:04.8]} 10... a5 {[%clk 0:02:49.3]} 11. Bf4
{[%clk 0:03:03.7]} 11... a4 {[%clk 0:02:49.4]} 12. h4 {[%clk 0:03:04.3]} 12...
b4 {[%clk 0:02:49.3]} 13. h5 {[%clk 0:03:01.1]} 13... Nd4 {[%clk 0:02:44.8]} 14.
N1h2 {[%clk 0:02:53.3]} 14... Nxf3+ {[%clk 0:02:39]} 15. Qxf3 {[%clk 0:02:50.9]}
15... Rb8 {[%clk 0:02:37.5]} 16. Ng4 {[%clk 0:02:49.7]} 16... d4 {[%clk
0:02:18.4]} 17. Qc6 {[%clk 0:01:21]} 17... b3 {[%clk 0:02:03.6]} 18. Qxa4 {[%clk
0:01:17]} 18... bxc2 {[%clk 0:02:01.8]} 19. Qxc2 {[%clk 0:01:15.5]} 19... Bb7
{[%clk 0:01:55.3]} 20. b3 {[%clk 0:01:01.1]} 20... Bxg2 {[%clk 0:01:53.5]} 21.
Kxg2 {[%clk 0:01:01.5]} 21... Nb6 {[%clk 0:01:53.4]} 22. Bd2 {[%clk 0:00:54.9]}
22... Nd5 {[%clk 0:01:52.6]} 23. f4 {[%clk 0:00:55.6]} 23... Qd7 {[%clk
0:01:44.7]} 24. Nf2 {[%clk 0:00:53.5]} 24... Rfc8 {[%clk 0:01:11.3]} 25. Ne4
{[%clk 0:00:52.6]} 25... h6 {[%clk 0:01:07.5]} 26. Rec1 {[%clk 0:00:51.4]} 26...
f5 {[%clk 0:01:06.3]} 27. exf6 {[%clk 0:00:49.1]} 27... gxf6 {[%clk 0:01:05.6]}
28. Qd1 {[%clk 0:00:47.6]} 28... f5 {[%clk 0:01:05.2]} 29. Nf2 {[%clk
0:00:46.8]} 29... Kh7 {[%clk 0:01:03.2]} 30. Qf3 {[%clk 0:00:43.3]} 30... Rg8
{[%clk 0:01:02.7]} 31. Re1 {[%clk 0:00:33.1]} 31... Bh4 {[%clk 0:01:01.9]} 32.
Nh1 {[%clk 0:00:32.7]} 32... Rg4 {[%clk 0:00:56.9]} 33. Kh3 {[%clk 0:00:28.5]}
33... Bf6 {[%clk 0:00:51.5]} 34. Nf2 {[%clk 0:00:25.9]} 34... Rg7 {[%clk
0:00:51.8]} 35. g4 {[%clk 0:00:26.1]} 35... fxg4+ {[%clk 0:00:44.3]} 36. Nxg4
{[%clk 0:00:25.7]} 36... Rbg8 {[%clk 0:00:44.2]} 37. Rg1 {[%clk 0:00:21.6]}
37... e5 {[%clk 0:00:44]} 38. Qxd5 {[%clk 0:00:16.9]} 38... Qc8 {[%clk
0:00:34.4]} 39. Qe4+ {[%clk 0:00:15.6]} 39... Kh8 {[%clk 0:00:34.5]} 40. f5
{[%clk 0:00:15.8]} 40... Bg5 {[%clk 0:00:33.6]} 41. Bxg5 {[%clk 0:00:14.4]}
41... Rxg5 {[%clk 0:00:33.4]} 42. Rg2 {[%clk 0:00:15]} 42... Qd8 {[%clk
0:00:31.2]} 43. Qxe5+ {[%clk 0:00:15.2]} 43... R8g7 {[%clk 0:00:28.4]} 44. Re1
{[%clk 0:00:13]} 44... Rxh5+ {[%clk 0:00:28.2]} 45. Kg3 {[%clk 0:00:13.7]} 45...
Qh4+ {[%clk 0:00:26.8]} 46. Kf3 {[%clk 0:00:13.9]} 46... Qh3+ {[%clk 0:00:25.4]}
47. Rg3 {[%clk 0:00:14.6]} 47... Qh4 {[%clk 0:00:24.4]} 48. Qe8+ {[%clk
0:00:14.3]} 48... Kh7 {[%clk 0:00:24.5]} 49. Re6 {[%clk 0:00:12.8]} 49... Rxf5+
{[%clk 0:00:24.2]} 50. Kg2 {[%clk 0:00:12.4]} 50... Rfg5 {[%clk 0:00:17.4]} 51.
Nf6# {[%clk 0:00:11.3]} 1-0

[Event "*** SCC Grand Prix: Titled Tuesday Blitz"]
[Site "Chess.com"]
[Date "2020.06.23"]
[Round "9"]
[White "Fusikk"]
[Black "MathiasWomacka"]
[Result "1-0"]
[WhiteElo "2560"]
[BlackElo "2432"]
[TimeControl "180+1"]
[EndTime "11:46:56 PDT"]
[Termination "Fusikk won by resignation"]

1. e4 {[%clk 0:03:00.9]} 1... c5 {[%clk 0:03:00]} 2. Nf3 {[%clk 0:02:53.4]} 2...
d6 {[%clk 0:02:59.6]} 3. Bb5+ {[%clk 0:02:52.5]} 3... Nd7 {[%clk 0:02:58.8]} 4.
O-O {[%clk 0:02:52]} 4... a6 {[%clk 0:02:58.4]} 5. Bd3 {[%clk 0:02:51.6]} 5...
Ngf6 {[%clk 0:02:54]} 6. Re1 {[%clk 0:02:46.7]} 6... b5 {[%clk 0:02:49.4]} 7. c3
{[%clk 0:02:46]} 7... Bb7 {[%clk 0:02:48.3]} 8. a4 {[%clk 0:02:45.6]} 8... c4
{[%clk 0:02:43.5]} 9. Bc2 {[%clk 0:02:44]} 9... Nc5 {[%clk 0:02:43.4]} 10. e5
{[%clk 0:02:29.2]} 10... dxe5 {[%clk 0:02:42.6]} 11. Nxe5 {[%clk 0:02:27.8]}
11... e6 {[%clk 0:02:31.3]} 12. d4 {[%clk 0:02:22.1]} 12... cxd3 {[%clk
0:02:31]} 13. Nxd3 {[%clk 0:02:21.6]} 13... Qd5 {[%clk 0:02:20.1]} 14. Nf4
{[%clk 0:02:18.1]} 14... Qxd1 {[%clk 0:02:18.9]} 15. Rxd1 {[%clk 0:02:19]} 15...
Nxa4 {[%clk 0:02:07]} 16. Rxa4 {[%clk 0:01:49.1]} 16... bxa4 {[%clk 0:02:07.9]}
17. Bxa4+ {[%clk 0:01:49.7]} 17... Ke7 {[%clk 0:02:07.2]} 18. b3 {[%clk
0:01:50.2]} 18... Nd5 {[%clk 0:02:07.1]} 19. c4 {[%clk 0:01:38.8]} 19... Nb6
{[%clk 0:01:52.7]} 20. Ba3+ {[%clk 0:01:15.3]} 20... Kf6 {[%clk 0:01:52.4]} 21.
Nh5+ {[%clk 0:01:15.3]} 21... Kg5 {[%clk 0:01:39.6]} 22. Ng3 {[%clk 0:01:08.5]}
22... Bxa3 {[%clk 0:01:36.6]} 23. Nxa3 {[%clk 0:01:09.4]} 23... Rhd8 {[%clk
0:01:35.4]} 24. Rb1 {[%clk 0:01:05.8]} 24... Nxa4 {[%clk 0:01:32.8]} 25. bxa4
{[%clk 0:01:05.6]} 25... Bc6 {[%clk 0:01:33.2]} 26. a5 {[%clk 0:01:05.1]} 26...
Rab8 {[%clk 0:01:31]} 27. Rc1 {[%clk 0:01:05.3]} 27... Rd2 {[%clk 0:01:19.2]}
28. Nb1 {[%clk 0:00:50.2]} 28... Rdb2 {[%clk 0:01:09.5]} 29. Nc3 {[%clk
0:00:50]} 29... f5 {[%clk 0:01:04.6]} 30. Nf1 {[%clk 0:00:41.5]} 30... R8b3
{[%clk 0:00:40.2]} 31. c5 {[%clk 0:00:38.2]} 31... Ra3 {[%clk 0:00:37.9]} 32.
Ne3 {[%clk 0:00:34.7]} 32... Rbb3 {[%clk 0:00:31.6]} 33. Ne2 {[%clk 0:00:31.8]}
33... Rxa5 {[%clk 0:00:28.2]} 34. Nd4 {[%clk 0:00:30]} 34... Rba3 {[%clk
0:00:14.2]} 35. Nxc6 {[%clk 0:00:19.4]} 35... Ra1 {[%clk 0:00:14.2]} 36. h4+
{[%clk 0:00:11.1]} 36... Kxh4 {[%clk 0:00:13.5]} 37. Rxa1 {[%clk 0:00:11.5]}
37... Rxa1+ {[%clk 0:00:12.8]} 38. Kh2 {[%clk 0:00:12.4]} 38... Rc1 {[%clk
0:00:12.8]} 39. Nb4 {[%clk 0:00:10.2]} 39... Rxc5 {[%clk 0:00:12.4]} 40. Nxa6
{[%clk 0:00:10.4]} 40... f4 {[%clk 0:00:12.4]} 41. Nxc5 {[%clk 0:00:09.9]} 41...
fxe3 {[%clk 0:00:11.9]} 42. fxe3 {[%clk 0:00:10.8]} 42... Kg5 {[%clk 0:00:12]}
43. Kg3 {[%clk 0:00:10.9]} 43... Kf5 {[%clk 0:00:12.8]} 44. Kf3 {[%clk
0:00:11.1]} 44... g5 {[%clk 0:00:12.7]} 45. g4+ {[%clk 0:00:09.6]} 45... Ke5
{[%clk 0:00:11.2]} 46. Nd3+ {[%clk 0:00:09.7]} 46... Kf6 {[%clk 0:00:11.1]} 47.
Nf2 {[%clk 0:00:10.6]} 47... Kg6 {[%clk 0:00:11.2]} 48. Nh1 {[%clk 0:00:09.6]}
48... h5 {[%clk 0:00:11.8]} 49. Ng3 {[%clk 0:00:09.7]} 49... h4 {[%clk 0:00:11]}
50. Ne4 {[%clk 0:00:09]} 50... Kh6 {[%clk 0:00:09.9]} 51. Nf2 {[%clk 0:00:09.1]}
51... Kg6 {[%clk 0:00:10.1]} 52. Nh3 {[%clk 0:00:09.5]} 52... Kf6 {[%clk
0:00:10.5]} 53. Ke4 {[%clk 0:00:09.7]} 53... Kg6 {[%clk 0:00:09.8]} 54. Ke5
{[%clk 0:00:09.6]} 1-0

[Event "*** SCC Grand Prix: Titled Tuesday Blitz"]
[Site "Chess.com"]
[Date "2020.06.23"]
[Round "9"]
[White "Semetey"]
[Black "WIDBIFS"]
[Result "0-1"]
[WhiteElo "2537"]
[BlackElo "2712"]
[TimeControl "180+1"]
[EndTime "11:46:59 PDT"]
[Termination "WIDBIFS won on time"]

1. d4 {[%clk 0:03:00.9]} 1... Nf6 {[%clk 0:03:00.4]} 2. Nc3 {[%clk 0:03:00.9]}
2... g6 {[%clk 0:03:01.3]} 3. Bf4 {[%clk 0:03:00.1]} 3... d5 {[%clk 0:03:00.7]}
4. Qd2 {[%clk 0:03:00.1]} 4... Bg7 {[%clk 0:03:01.2]} 5. Bh6 {[%clk 0:02:59.9]}
5... O-O {[%clk 0:03:01.4]} 6. O-O-O {[%clk 0:02:57.8]} 6... c5 {[%clk
0:03:01.7]} 7. Bxg7 {[%clk 0:02:56.3]} 7... Kxg7 {[%clk 0:03:01.4]} 8. e3 {[%clk
0:02:51.7]} 8... Nc6 {[%clk 0:02:57.9]} 9. Nf3 {[%clk 0:02:50.4]} 9... Bf5
{[%clk 0:02:50.2]} 10. dxc5 {[%clk 0:02:47.6]} 10... Qa5 {[%clk 0:02:49.4]} 11.
Nd4 {[%clk 0:02:47.2]} 11... Rfd8 {[%clk 0:02:33.8]} 12. Nxf5+ {[%clk
0:02:17.9]} 12... gxf5 {[%clk 0:02:34.7]} 13. Bd3 {[%clk 0:02:17.5]} 13... e6
{[%clk 0:02:21.7]} 14. h4 {[%clk 0:02:17.3]} 14... Ne4 {[%clk 0:02:05.7]} 15.
Bxe4 {[%clk 0:02:14.2]} 15... fxe4 {[%clk 0:02:06.6]} 16. f3 {[%clk 0:02:08.4]}
16... Qxc5 {[%clk 0:01:54.5]} 17. Qf2 {[%clk 0:02:00.3]} 17... exf3 {[%clk
0:01:47.6]} 18. gxf3 {[%clk 0:01:57.7]} 18... Kh8 {[%clk 0:01:47.7]} 19. h5
{[%clk 0:01:50.3]} 19... Rg8 {[%clk 0:01:42.3]} 20. Rhg1 {[%clk 0:01:48.7]}
20... Ne5 {[%clk 0:01:40.7]} 21. Kb1 {[%clk 0:01:33.3]} 21... Qe7 {[%clk
0:01:03.4]} 22. e4 {[%clk 0:01:29.6]} 22... dxe4 {[%clk 0:00:54.3]} 23. Nxe4
{[%clk 0:01:25.8]} 23... f6 {[%clk 0:00:51.1]} 24. f4 {[%clk 0:01:04.4]} 24...
Nc6 {[%clk 0:00:46.8]} 25. Qh4 {[%clk 0:00:53.7]} 25... f5 {[%clk 0:00:28.9]}
26. Nf6 {[%clk 0:00:33.2]} 26... Rxg1 {[%clk 0:00:22.9]} 27. Rxg1 {[%clk
0:00:31.8]} 27... Rf8 {[%clk 0:00:23.2]} 28. h6 {[%clk 0:00:21.5]} 28... Qxf6
{[%clk 0:00:18.9]} 29. Qh5 {[%clk 0:00:21.9]} 29... Ne7 {[%clk 0:00:15.8]} 30.
Rg7 {[%clk 0:00:20.8]} 30... Ng6 {[%clk 0:00:12.7]} 31. Rxb7 {[%clk 0:00:19.3]}
31... Nxf4 {[%clk 0:00:11.2]} 32. Qf3 {[%clk 0:00:19.1]} 32... Ng6 {[%clk
0:00:10.9]} 33. Rxa7 {[%clk 0:00:18.6]} 33... Ne5 {[%clk 0:00:06.8]} 34. Qb7
{[%clk 0:00:18]} 34... Nf7 {[%clk 0:00:07.4]} 35. a4 {[%clk 0:00:17]} 35... f4
{[%clk 0:00:07.5]} 36. Qf3 {[%clk 0:00:16]} 36... Ng5 {[%clk 0:00:07.9]} 37. Qd3
{[%clk 0:00:15.5]} 37... f3 {[%clk 0:00:08]} 38. Rg7 {[%clk 0:00:09.5]} 38... f2
{[%clk 0:00:07]} 39. Qf1 {[%clk 0:00:08]} 39... Qxh6 {[%clk 0:00:06.7]} 40. Rd7
{[%clk 0:00:05.3]} 40... Ne4 {[%clk 0:00:06.4]} 41. Ka2 {[%clk 0:00:04.5]} 41...
Ng3 {[%clk 0:00:05.7]} 42. Qd3 {[%clk 0:00:02.7]} 42... f1=Q {[%clk 0:00:03]}
43. Qc3+ {[%clk 0:00:03.1]} 43... Qff6 {[%clk 0:00:03]} 44. Qxg3 {[%clk
0:00:03.7]} 44... Qhg6 {[%clk 0:00:03]} 45. Qc7 {[%clk 0:00:03.5]} 45... e5
{[%clk 0:00:03.1]} 46. a5 {[%clk 0:00:03]} 46... Qe6+ {[%clk 0:00:04]} 47. b3
{[%clk 0:00:03.1]} 47... Qxc2+ {[%clk 0:00:03.5]} 48. Qxc2 {[%clk 0:00:02.3]}
48... Qxd7 {[%clk 0:00:04.1]} 49. a6 {[%clk 0:00:01.5]} 49... Rd8 {[%clk
0:00:04.3]} 0-1